Cogmind - Beta 14 @@@ ROGUE MODE // 2024.12.30 @ 01:23:40 Player: Zaros426 Result: Destroyed by P-60 Hacker with Shock Rifle Performance ------------- Evolutions (4) 2000 Regions Visited (13) 2600 Robots Destroyed (138) 690 Value Destroyed (4246) 4246 Prototype IDs (53) 1060 Alien Tech Used (0) 0 Bonus (1698) 1698 TOTAL SCORE: 12294 Bonus ------- High Alert Combat Kills 34 Follower Combat Kills 197 Entered Garrisons 400 Used RIF Installer 500 Aligned with FarCom 300 Met Data Miner 300 Friendly Fire -33 Cogmind --------- Core Integrity 0/850 Matter 270/300 Energy 90/100 System Corruption 0% Temperature Cool (0) Movement Core (50) Location -6/Garrison Parts ------- > --- POWER (2) -------- (None) > --- PROPULSION (6) --- (None) > --- UTILITY (5) ------ Advanced Visual Processing Unit > --- WEAPON (2) ------- Longsword +1 > --- INVENTORY (5) ---- Hybrid Fission Core Huge Storage Unit Plasma Rifle Improved Datajack Peak State ------------ > --- POWER ------------ Light Angular Momentum Engine Neutrino Core > --- PROPULSION ------- Aluminum Leg Aluminum Leg Aluminum Leg Carbon-fiber Leg Carbon-fiber Leg Enhanced Flexi-carbon Leg > --- UTILITY ---------- High-capacity Storage Unit Advanced Visual Processing Unit Long-range Terrain Scanner Terrain Scan Processor Improved Hardlight Generator > --- WEAPON ----------- Lightning Gun Longsword +1 > --- INVENTORY -------- Improved Medium Treads Advanced Heat Sink Improved Cooling System Coolant Injector Huge Storage Unit High-capacity Matter Pod Structural Scanner Improved Sensor Array Seismic Detector Armor Integrity Analyzer Improved Heavy Armor Plating Improved Heavy Armor Plating Makeshift Light Armor Plating High-powered Tractor Beam Lightning Gun Lightning Gun Plasma Rifle Improved Datajack [Rating: 64] Favorites ----------- Power Improved Ion Engine Engine Improved Ion Engine Power Core Enhanced Nuclear Core Propulsion Improved Treads Treads Improved Treads Leg Aluminum Leg Wheel Armored Wheel Flight Unit VTOL Module Utility Huge Storage Unit Device Seismic Detector Storage Huge Storage Unit Processor Advanced Terrain Scan Processor Hackware Hacking Suite Protection Hardened Heavy Armor Plating Weapon Assault Rifle Energy Gun Precision Beam Rifle Energy Cannon EM Pulse Cannon Ballistic Gun Assault Rifle Launcher EMP Blaster Slashing Weapon Longsword +1 Special Melee Weapon Improved Datajack Build | -11 -10 -10 -10 -9 -8 -8 -7 -7 -7 -7 -6 -6 -6 ------- Run | Yrd Mat Min Exi Min Mat Gar Fac Low Low Dat Pro Fac Gar Slots Evolved 8 | . . . . . 4 . 2 . . . . 2 . Power 1 | . . . . . . . . . . . . 1 . Propulsion 4 | . . . . . 2 . 2 . . . . . . Utility 3 | . . . . . 2 . . . . . . 1 . Weapon . | . . . . . . . . . . . . . . Parts Attached 198 | 7 16 4 1 7 44 10 29 16 37 . 8 18 1 Power 15 | 1 2 . . . 4 . 4 . 2 . . 2 . Engine 10 | 1 2 . . . 4 . 2 . . . . 1 . Core 5 | . . . . . . . 2 . 2 . . 1 . Reactor . | . . . . . . . . . . . . . . Propulsion 45 | 2 2 . 1 . 10 3 4 4 9 . 4 6 . Treads 24 | 2 2 . 1 . 9 . 2 3 3 . 1 1 . Leg 9 | . . . . . . . . . 4 . 3 2 . Wheel 10 | . . . . . 1 3 2 1 . . . 3 . Hover . | . . . . . . . . . . . . . . Flight 2 | . . . . . . . . . 2 . . . . Utility 65 | 2 4 . . 1 14 2 12 6 14 . 2 8 . Device 34 | 1 . . . . 7 1 8 4 9 . 1 3 . Storage 6 | 1 3 . . 1 . . . . 1 . . . . Processor 5 | . . . . . . . 2 1 . . . 2 . Hackware 1 | . . . . . . 1 . . . . . . . Protection 19 | . 1 . . . 7 . 2 1 4 . 1 3 . Artifact . | . . . . . . . . . . . . . . Weapon 73 | 2 8 4 . 6 16 5 9 6 12 . 2 2 1 Energy Gun 15 | 1 4 . . 1 2 1 2 1 1 . 2 . . Energy Cannon 16 | . . . . . 8 1 3 1 3 . . . . Ballistic Gun 9 | 1 1 3 . 3 1 . . . . . . . . Ballistic Cannon . | . . . . . . . . . . . . . . Launcher 14 | . 3 1 . 1 2 1 2 2 2 . . . . Special Weapon . | . . . . . . . . . . . . . . Impact Weapon . | . . . . . . . . . . . . . . Slashing Weapon 18 | . . . . 1 3 2 2 1 6 . . 2 1 Piercing Weapon . | . . . . . . . . . . . . . . Special Melee Weapon 1 | . . . . . . . . 1 . . . . . Unidentified Prototypes 7 | . . . . . 2 . 3 . 1 . 1 . . Corrupted Parts 1 | . . . . . . . . . . . 1 . . System Corruption 3 | . . . . . . . . . . . 3 . . Parts Lost 49 | . 3 . . . 4 3 . 2 16 . 2 19 . Power 5 | . . . . . . . . . 2 . . 3 . Propulsion 27 | . 1 . . . 3 2 . 2 7 . 1 11 . Utility 8 | . . . . . . 1 . . 3 . . 4 . Weapon 9 | . 2 . . . 1 . . . 4 . 1 1 . Highest Loss Streak 17 | . 2 . . . 3 2 . 2 14 . 2 17 . To Critical Strikes . | . . . . . . . . . . . . . . Average Slot Usage (%) 85 | . 87 85 57 85 89 83 95 92 85 76 80 78 13 Engine 7 | . 14 14 14 14 8 9 6 . . . . 2 . Core 2 | . . . . . . . . 7 6 7 7 5 . Treads 24 | . 28 28 28 28 34 26 23 24 21 . . . . Leg 5 | . . . . . . . . . 3 30 37 29 . Wheel 4 | . . . . . . 5 22 14 11 . . . . Device 6 | . . . . . 8 6 9 11 11 7 9 8 . Storage 9 | . 14 14 14 14 9 9 7 7 7 7 7 6 . Processor 2 | . . . . . . . 6 7 5 . . 6 6 Protection 3 | . 2 . . . 9 9 2 1 . . 2 4 . Energy Gun 6 | . 11 . . 1 1 6 7 6 6 7 14 5 . Energy Cannon 3 | . . . . . 11 3 1 2 1 . . . . Ballistic Gun 4 | . 12 14 . 23 3 . . . . . . . . Launcher 1 | . 4 13 . 1 . . . . . . . . . Slashing Weapon 1 | . . . . 2 1 5 4 2 2 7 . 4 6 Peak Build Rating 64 | 7 15 13 11 20 40 44 48 48 52 35 46 64 17 Average Rating 28 | 5 11 12 10 14 30 38 43 39 39 35 35 46 12 On Entrance 24 | . 6 13 10 11 14 33 44 39 37 35 35 46 20 Naked Turns . | . . . . . . . . . . . . . . Heaviest Build 125 | 12 55 55 47 91 124 120 125 121 117 56 69 84 3 Greatest Support 91 | 40 46 46 46 46 89 85 48 24 91 45 83 88 3 Greatest Overweight (x) 22 | 1 1 1 1 1 8 9 3 7 22 1 1 18 . Average Overweight (x) 1 | . . 1 1 1 1 2 2 3 2 1 . . . Largest Inventory Capacity 25 | 8 20 20 20 25 25 25 25 25 25 20 20 20 20 Average Capacity 22 | 7 18 20 20 22 25 25 25 25 24 20 20 20 5 Most Carried 25 | 5 19 20 20 25 25 24 25 25 25 17 17 20 16 Average Carried 19 | 2 15 18 19 20 24 21 24 20 19 17 15 16 4 Final Capacity 25 | 8 20 20 20 25 25 25 25 25 20 20 20 20 5 Final Carried 25 | 4 18 20 20 25 22 24 25 21 17 17 15 16 4 Class Distribution -------------------- 56% | Mutant 43% | Scavenger-Mutant Dominant Class ---------------- Mutant | -10/Materials Mutant | -10/Mines Mutant | -10/Exiles Mutant | -9/Mines Mutant | -8/Materials Mutant | -8/Garrison Scavenger-Mutant | -7/Factory Scavenger-Mutant | -7/Lower Caves Scavenger-Mutant | -7/Lower Caves Scavenger-Mutant | -7/Data Miner Scavenger-Mutant | -6/Proximity Caves Scavenger-Mutant | -6/Factory Mutant | -6/Garrison Resources | -11 -10 -10 -10 -9 -8 -8 -7 -7 -7 -7 -6 -6 -6 ----------- Run | Yrd Mat Min Exi Min Mat Gar Fac Low Low Dat Pro Fac Gar Matter Collected 2721 | 265 487 80 20 100 707 120 240 240 316 . 60 86 . Remotely . | . . . . . . . . . . . . . . Salvage Created 5770 | 53 1211 107 . 73 1548 531 572 452 582 . 265 192 184 Parts 312 | 10 82 10 . 4 83 16 33 19 34 . 3 11 7 Haulers Intercepted 7 | . 2 . . . 3 . 1 . 1 . . . . Recyclers Shooed 1 | 1 . . . . . . . . . . . . . Parts Field Recycled . | . . . . . . . . . . . . . . Retrieved Matter . | . . . . . . . . . . . . . . Parts Self-Destructed 53 | . . . . . . . . 17 36 . . . . Prevented 17 | . . . . . . . . 4 11 . 2 . . Kills | -11 -10 -10 -10 -9 -8 -8 -7 -7 -7 -7 -6 -6 -6 ------- Run | Yrd Mat Min Exi Min Mat Gar Fac Low Low Dat Pro Fac Gar Combat Hostiles Destroyed 102 | . 25 3 . 4 24 4 10 12 12 . 2 3 3 Melee 20 | . . . . . 2 . 4 3 5 . . 3 3 Guns 32 | . 17 . . . 3 2 2 3 4 . 1 . . Cannons 19 | . . . . . 11 2 2 1 3 . . . . AOE 27 | . 8 3 . 4 5 . 2 5 . . . . . Classes Destroyed 14 | 1 8 . . . 2 1 1 1 . . . . . Worker 6 | . 2 . . . 2 . 1 . . . . 1 . Builder 3 | . 2 . . . 1 . . . . . . . . Tunneler 6 | 3 . 2 . . 1 . . . . . . . . Hauler 7 | . 2 . . . 3 . 1 . 1 . . . . Recycler 3 | . 1 . . . 2 . . . . . . . . Operator 2 | . 1 . . . . . . . . . . 1 . Watcher 9 | . 3 . . . 5 . 1 . . . . . . Swarmer 41 | . 9 3 . 4 9 . 3 7 5 . 1 . . Grunt 46 | . 16 . . . 8 3 3 4 6 . . 3 3 Brawler 2 | . . . . . 1 . 1 . . . . . . Sentry 10 | . . . . . 6 . 2 . 1 . 1 . . Hunter 1 | . . . . . . 1 . . . . . . . Programmer 1 | . . . . . . . 1 . . . . . . Mutant 1 | . . . . . . . . 1 . . . . . Best Kill Streak 6 | 1 6 5 . 4 5 2 4 5 6 . 2 3 3 Combat Bots Only 6 | . 4 3 . 4 4 2 3 5 6 . 2 3 3 Max Kills in Single Turn 4 | 1 3 2 . 2 4 1 1 2 1 . 1 1 1 Gunslinging . | . . . . . . . . . . . . . . Exploded 3 | . 3 2 . 2 3 . 1 2 . . . . . Melee 1 | . . . . . 1 . 1 1 1 . . 1 1 Uniques/NPCs Destroyed . | . . . . . . . . . . . . . . Combat | -11 -10 -10 -10 -9 -8 -8 -7 -7 -7 -7 -6 -6 -6 -------- Run | Yrd Mat Min Exi Min Mat Gar Fac Low Low Dat Pro Fac Gar Hostile Shots Fired 1171 | . 145 11 . 17 138 32 64 79 263 . 44 353 25 Missed 341 | . 45 4 . 4 37 14 22 19 67 . 10 110 9 Damage Taken 11215 | . 1032 63 . 145 1496 266 468 923 2803 . 421 3322 276 Core 1718 | . 114 9 . 8 152 23 36 61 422 . 41 594 258 Absorbed by Shields 212 | . . . . . . . . . 80 . 30 102 . Core Remaining (%) 58 | 100 . . . 47 . 68 . . . . 20 . . Volleys Fired 280 | 10 94 5 . 7 82 14 22 11 24 . 11 . . Largest 2 | 2 2 1 . 2 2 2 2 2 2 . 2 . . Hottest 136 | 70 70 33 . 73 131 121 126 136 130 . 110 . . Shots Fired 522 | 20 188 5 . 9 158 28 40 19 33 . 22 . . Gun 308 | 20 175 . . 3 36 9 18 6 19 . 22 . . Cannon 164 | . . . . . 113 14 18 9 10 . . . . Launcher 50 | . 13 5 . 6 9 5 4 4 4 . . . . Special . | . . . . . . . . . . . . . . Kinetic 129 | 10 95 . . 2 22 . . . . . . . . Thermal 169 | 10 2 . . . 59 23 36 15 24 . . . . Explosive . | . . . . . . . . . . . . . . Electromagnetic 224 | . 91 5 . 7 77 5 4 4 9 . 22 . . Robot Hit Streak 17 | 2 12 1 . 3 17 3 10 7 10 . 11 . . Robot Miss Streak 6 | 2 6 2 . 1 5 3 1 3 2 . 2 . . Penetration Max . | . . . . . . . . . . . . . . Secondary Targets 3 | . 3 . . . . . . . . . . . . Max Gunslinging Chain 1 | . 1 . . . . . . . . . . . . Shots Hit Robots 409 | 9 105 2 . 6 119 26 34 30 33 . 21 16 8 Core Hits 197 | 4 50 6 . 4 47 15 18 15 20 . 5 8 5 Critical Kills 1 | . . . . . 1 . . . . . . . . Critical Parts Destroyed 2 | 1 1 . . . . . . . . . . . . Critical Strikes 19 | 1 3 . . . 4 3 5 1 . . . . 2 Burn 5 | . 1 . . . . . 4 . . . . . . Meltdown 1 | . . . . . 1 . . . . . . . . Destroy 2 | 1 1 . . . . . . . . . . . . Corrupt 3 | . 1 . . . 2 . . . . . . . . Sever 8 | . . . . . 1 3 1 1 . . . . 2 Melee Attacks 129 | . . . . 7 11 26 24 19 11 . 3 20 8 Impact . | . . . . . . . . . . . . . . Slashing 119 | . . . . 7 11 26 24 9 11 . 3 20 8 Piercing . | . . . . . . . . . . . . . . Sneak Attacks 20 | . . . . . 5 . 1 10 1 . . 3 . Combat Hostiles 1 | . . . . . . . . . . . . 1 . Follow-up Attacks . | . . . . . . . . . . . . . . Damage Inflicted 11778 | 125 1818 128 . 241 3300 1337 1065 816 1185 . 563 830 370 Guns 2827 | 125 1343 . . 26 376 120 205 70 255 . 307 . . Cannons 2669 | . . . . . 1853 116 332 125 243 . . . . Explosions 2168 | . 475 128 . 215 421 189 148 308 284 . . . . Melee 4109 | . . . . . 650 912 380 313 398 . 256 830 370 Ramming 5 | . . . . . . . . . 5 . . . . Kinetic 922 | 76 620 . . 15 211 . . . . . . . . Thermal 2737 | 49 206 . . 37 1122 236 537 195 355 . . . . Explosive . | . . . . . . . . . . . . . . Electromagnetic 4005 | . 992 128 . 189 1317 189 148 308 427 . 307 . . Impact . | . . . . . . . . . . . . . . Slashing 4109 | . . . . . 650 912 380 313 398 . 256 830 370 Piercing . | . . . . . . . . . . . . . . Highest Corruption 3 | . 1 1 1 1 . . 2 1 . . 3 . . Average Corruption 1 | . 1 1 1 1 . . 1 1 . . 3 . . Corruption Purged 2 | . . . . . . . 1 1 . . . . . Corruption Blocked . | . . . . . . . . . . . . . . Effects 8 | . 1 2 2 3 . . . . . . . . . Message Errors 5 | . 1 1 1 2 . . . . . . . . . Data Loss (minor) 1 | . . . . 1 . . . . . . . . . Alerts 2 | . . 1 1 . . . . . . . . . . Overload Shots . | . . . . . . . . . . . . . . Overflow Damage 584 | . . . . . 175 60 58 7 37 . 198 49 . Projectiles 21 | . . . . . 21 . . . . . . . . Explosions 19 | . . . . . 11 . . . 8 . . . . Melee 544 | . . . . . 143 60 58 7 29 . 198 49 . Knockbacks . | . . . . . . . . . . . . . . Impact . | . . . . . . . . . . . . . . Kinetic . | . . . . . . . . . . . . . . Secondary . | . . . . . . . . . . . . . . Self-Inflicted Damage 175 | . 15 6 . 36 99 . . 10 9 . . . . Shots 12 | . 1 1 . 4 3 . . 2 1 . . . . Rammed 1 | . . . . . . . . . 1 . . . . Targets Rammed 1 | . . . . . . . . . 1 . . . . Kicked . | . . . . . . . . . . . . . . Crushed . | . . . . . . . . . . . . . . Highest Temperature 428 | 45 162 . . 15 270 300 180 428 418 . 190 . . Average Temperature 71 | 16 30 . . 10 60 131 67 202 116 . 87 . . Received Heat Transfer 3289 | . 324 . . . 360 72 150 292 1135 . 68 771 117 Effects 3 | . . . . . . . . 2 1 . . . . Shutdowns 2 | . . . . . . . . 1 1 . . . . Energy Bleed 1 | . . . . . . . . 1 . . . . . Siege Activations . | . . . . . . . . . . . . . . Robots Corrupted 3 | . . . . . 2 . . . . . 1 . . Combat Hostiles 3 | . . . . . 2 . . . . . 1 . . Parts Fried 21 | . 5 2 . 1 5 . 4 . 1 . 3 . . Impact Corruptions . | . . . . . . . . . . . . . . Robots Melted 1 | . . . . . 1 . . . . . . . . Combat Hostiles 1 | . . . . . 1 . . . . . . . . Parts Melted 8 | . . . . . 4 1 2 1 . . . . . Heat Transferred 4949 | 148 348 . . 50 1791 392 1184 333 703 . . . . Parts Sabotaged . | . . . . . . . . . . . . . . Parts Stolen 5 | . . . . . . . . . 5 . . . . Parts Stripped . | . . . . . . . . . . . . . . Power Chain Reactions 8 | . 2 1 . 1 4 . . . . . . . . Alert | -11 -10 -10 -10 -9 -8 -8 -7 -7 -7 -7 -6 -6 -6 ------- Run | Yrd Mat Min Exi Min Mat Gar Fac Low Low Dat Pro Fac Gar Peak Influence 591 | 15 414 162 . 94 450 591 370 . . . . 129 168 Initial 310 | . 9 78 . . . 273 310 . . . . 9 13 Average 181 | 6 215 139 . 49 149 434 207 . . . . 50 75 Maximum Alert Level 2 | . 2 . . . 2 2 1 . . . . . . Low Security (%) 57 | 100 31 100 . 100 69 . 53 . . . . 100 100 Level 1 35 | . 68 . . . 27 33 46 . . . . . . Level 2 7 | . . . . . 2 66 . . . . . . . Level 3 . | . . . . . . . . . . . . . . Level 4 . | . . . . . . . . . . . . . . Level 5 . | . . . . . . . . . . . . . . High Security . | . . . . . . . . . . . . . . Max Security . | . . . . . . . . . . . . . . Squads Dispatched 14 | . 5 . . . 3 . 3 . 1 . . 2 . Investigation 7 | . 5 . . . . . . . 1 . . 1 . Extermination 2 | . . . . . . . 2 . . . . . . Reinforcement 4 | . . . . . 2 . 1 . . . . 1 . Assault . | . . . . . . . . . . . . . . Garrison 1 | . . . . . 1 . . . . . . . . Intercept . | . . . . . . . . . . . . . . Searches Triggered . | . . . . . . . . . . . . . . Construction Impeded 1 | . . . . . 1 . . . . . . . . Haulers Reinforced 1 | . . . . . . . 1 . . . . . . Active Scanning Responses . | . . . . . . . . . . . . . . Cargo Convoy Interrupts . | . . . . . . . . . . . . . . Stealth | -11 -10 -10 -10 -9 -8 -8 -7 -7 -7 -7 -6 -6 -6 --------- Run | Yrd Mat Min Exi Min Mat Gar Fac Low Low Dat Pro Fac Gar Distress Signals 9 | . 6 . . . 2 . 1 . . . . . . Communications Jammed . | . . . . . . . . . . . . . . Distress Signals . | . . . . . . . . . . . . . . Times Spotted 182 | . 37 3 . 4 44 6 15 21 26 . 5 14 7 Peak Tracking Total 12 | . 8 3 . 4 4 3 4 5 12 . 3 6 9 Tactical Retreats 17 | . 3 . . . 2 2 1 4 . . 2 2 1 Traps | -11 -10 -10 -10 -9 -8 -8 -7 -7 -7 -7 -6 -6 -6 ------- Run | Yrd Mat Min Exi Min Mat Gar Fac Low Low Dat Pro Fac Gar Traps Triggered 12 | . 4 . . . 1 7 . . . . . . . Indirectly 3 | . . . . . . 3 . . . . . . . Trap Hack Attempts . | . . . . . . . . . . . . . . Triggered . | . . . . . . . . . . . . . . Disarmed . | . . . . . . . . . . . . . . Reprogrammed . | . . . . . . . . . . . . . . Reused . | . . . . . . . . . . . . . . Traps Extracted . | . . . . . . . . . . . . . . Installed . | . . . . . . . . . . . . . . Triggered 3 | . . . . . . 1 . 2 . . . . . Most Traps Carried 5 | . . . . 5 5 . . 2 2 . . . . Machines | -11 -10 -10 -10 -9 -8 -8 -7 -7 -7 -7 -6 -6 -6 ---------- Run | Yrd Mat Min Exi Min Mat Gar Fac Low Low Dat Pro Fac Gar Machines Disabled 15 | . 3 . . . 6 2 1 1 2 . . . . Max in Single Turn 2 | . 2 . . . 2 1 1 1 1 . . . . Garrison Relay 2 | . . . . . . 2 . . . . . . . Machines Repaired . | . . . . . . . . . . . . . . Machines Dismantled . | . . . . . . . . . . . . . . Machines Sabotaged . | . . . . . . . . . . . . . . Overloaded Fab Kills . | . . . . . . . . . . . . . . Hacking | -11 -10 -10 -10 -9 -8 -8 -7 -7 -7 -7 -6 -6 -6 --------- Run | Yrd Mat Min Exi Min Mat Gar Fac Low Low Dat Pro Fac Gar Machines Accessed 36 | . 8 . 2 . 12 2 3 1 1 4 . 2 1 Terminals 26 | . 7 . . . 11 2 3 1 1 . . . 1 Fabricators 1 | . . . . . . . . . . . . 1 . Repair Stations . | . . . . . . . . . . . . . . Recycling Units 1 | . 1 . . . . . . . . . . . . Scanalyzers . | . . . . . . . . . . . . . . Garrison Access 2 | . . . . . 1 . . . . . . 1 . Total Hacks 151 | . 25 . 24 . 47 4 9 4 3 29 . 4 2 Successful 110 | . 13 . 24 . 29 2 4 4 3 29 . 2 . Failed 41 | . 12 . . . 18 2 5 . . . . 2 2 Catastrophic 5 | . . . . . 3 1 . . . . . . 1 Database Lockouts . | . . . . . . . . . . . . . . Manual 54 | . 18 . 1 . 29 1 5 . . . . . . Terminals 92 | . 24 . . . 46 4 9 4 3 . . . 2 Fabricators 3 | . . . . . . . . . . . . 3 . Repair Stations . | . . . . . . . . . . . . . . Recycling Units 1 | . 1 . . . . . . . . . . . . Scanalyzers . | . . . . . . . . . . . . . . Garrison Access 2 | . . . . . 1 . . . . . . 1 . Terminal Hacks 85 | . 4 . 24 . 15 2 4 4 3 29 . . . Record 41 | . . . 23 . . . . 4 3 11 . . . Part Schematic 10 | . . . . . . . . . . 10 . . . Robot Schematic 5 | . . . . . . . . . . 5 . . . Robot Analysis 1 | . 1 . . . . . . . . . . . . Prototype ID Bank 10 | . 1 . . . 6 . . . . 3 . . . Emergency Access Points 2 | . . . . . 1 1 . . . . . . . Alert Level 4 | . 1 . . . 1 . 2 . . . . . . Unreport Threat 4 | . 1 . . . 1 . 2 . . . . . . Locate Traps 1 | . . . . . 1 . . . . . . . . Maintenance Status 1 | . . . . . 1 . . . . . . . . Zone Layout 4 | . . . . . 4 . . . . . . . . Security Stations 1 | . . . . . . 1 . . . . . . . Derelict Proto ID Bank 1 | . . . 1 . . . . . . . . . . Fabricator Hacks 1 | . . . . . . . . . . . . 1 . Load Schematic 1 | . . . . . . . . . . . . 1 . Repair Station Hacks . | . . . . . . . . . . . . . . Recycling Unit Hacks . | . . . . . . . . . . . . . . Scanalyzer . | . . . . . . . . . . . . . . Garrison Access Hacks 2 | . . . . . 1 . . . . . . 1 . Unlock Access 2 | . . . . . 1 . . . . . . 1 . Unauthorized Hacks 22 | . 9 . . . 13 . . . . . . . . Terminals 21 | . 8 . . . 13 . . . . . . . . Track 6 | . 2 . . . 4 . . . . . . . . Botnet 4 | . 1 . . . 3 . . . . . . . . Skim 11 | . 5 . . . 6 . . . . . . . . Fabricators . | . . . . . . . . . . . . . . Repair Stations . | . . . . . . . . . . . . . . Recycling Units 1 | . 1 . . . . . . . . . . . . Tunnel 1 | . 1 . . . . . . . . . . . . Scanalyzers . | . . . . . . . . . . . . . . Garrison Access . | . . . . . . . . . . . . . . Data Cores Recovered 1 | . 1 . . . . . . . . . . . . Used . | . . . . . . . . . . . . . . Hacking Detections 28 | . 7 . . . 12 2 3 1 1 . . 1 1 Full Trace Events 4 | . . . . . . . . 1 1 . . 1 1 Feedback Events . | . . . . . . . . . . . . . . Feedback Blocked . | . . . . . . . . . . . . . . Robot Schematics Acquired 5 | . . . . . . . . . . 5 . . . Robots Built . | . . . . . . . . . . . . . . Authchips . | . . . . . . . . . . . . . . Time . | . . . . . . . . . . . . . . Total Robot Build Rating . | . . . . . . . . . . . . . . Part Schematics Acquired 10 | . . . . . . . . . . 10 . . . Parts Built . | . . . . . . . . . . . . . . Authchips . | . . . . . . . . . . . . . . Time . | . . . . . . . . . . . . . . Total Part Build Rating . | . . . . . . . . . . . . . . Parts Repaired . | . . . . . . . . . . . . . . Time . | . . . . . . . . . . . . . . Parts Recycled . | . . . . . . . . . . . . . . Recycled Matter . | . . . . . . . . . . . . . . Retrieved Matter . | . . . . . . . . . . . . . . Retrieved Components . | . . . . . . . . . . . . . . Parts Scanalyzed . | . . . . . . . . . . . . . . Part Schematics Acquired . | . . . . . . . . . . . . . . Parts Damaged . | . . . . . . . . . . . . . . Bothacking | -11 -10 -10 -10 -9 -8 -8 -7 -7 -7 -7 -6 -6 -6 ------------ Run | Yrd Mat Min Exi Min Mat Gar Fac Low Low Dat Pro Fac Gar Used RIF Installer 1 | . . . . . . 1 . . . . . . . Robots Hacked . | . . . . . . . . . . . . . . Non-combat . | . . . . . . . . . . . . . . Combat . | . . . . . . . . . . . . . . Robot Hacks Applied . | . . . . . . . . . . . . . . Relay Couplers Released 8 | . . . . . . 8 . . . . . . . Machine Destruction 8 | . . . . . . 8 . . . . . . . Fabnet Peak Effective % . | . . . . . . . . . . . . . . Robots Rewired 4 | . . . . . . . . 4 . . . . . Allies Hacked . | . . . . . . . . . . . . . . Hacks Repelled . | . . . . . . . . . . . . . . Allies | -11 -10 -10 -10 -9 -8 -8 -7 -7 -7 -7 -6 -6 -6 -------- Run | Yrd Mat Min Exi Min Mat Gar Fac Low Low Dat Pro Fac Gar Total Allies 6 | . . . . . . . . 4 1 . 1 . . Largest Group 4 | . . . . . . . . 4 4 . 1 . . Highest-Rated Group 141 | . . . . . . . . 85 141 . 96 . . Highest-Rated Ally 141 | . . . . . . . . 25 141 . 96 . . Total Orders . | . . . . . . . . . . . . . . Ally Attacks 44 | . . . . . . . . . 26 . 18 . . Total Damage 1343 | . . . . . . . . . 774 . 569 . . Kills 6 | . . . . . . . . . 5 . 1 . . Allies Corrupted . | . . . . . . . . . . . . . . Allies Melted 1 | . . . . . . . . . 1 . . . . Intel | -11 -10 -10 -10 -9 -8 -8 -7 -7 -7 -7 -6 -6 -6 ------- Run | Yrd Mat Min Exi Min Mat Gar Fac Low Low Dat Pro Fac Gar Robot Analysis Total 1 | . 1 . . . . . . . . . . . . Derelict Logs Recovered 5 | . . . . 1 . . . 1 1 . 2 . . Drone Launches . | . . . . . . . . . . . . . . Drone Recoveries . | . . . . . . . . . . . . . . Exploration | -11 -10 -10 -10 -9 -8 -8 -7 -7 -7 -7 -6 -6 -6 ------------- Run | Yrd Mat Min Exi Min Mat Gar Fac Low Low Dat Pro Fac Gar Turns Passed 12635 | 227 2063 260 579 748 2777 777 1031 1053 1355 196 1130 359 80 Spaces Moved 5602 | 117 763 102 240 279 988 315 657 557 548 104 651 187 94 Core 113 | 10 . . . . . . . . 3 . . 6 94 Treads 2769 | 107 763 102 240 279 895 192 . . 191 . . . . Legs 1014 | . . . . . . . . . 100 104 651 159 . Wheels 1706 | . . . . . 93 123 657 557 254 . . 22 . Hover . | . . . . . . . . . . . . . . Flight . | . . . . . . . . . . . . . . Fastest Speed 50 | 50 160 240 240 240 210 150 120 135 135 190 120 110 50 Average Speed 185 | 154 223 240 240 240 237 203 125 141 193 190 129 149 50 Slowest Speed 1150 | 160 240 240 240 240 240 312 135 195 1150 190 190 950 50 Overloaded Moves . | . . . . . . . . . . . . . . Propulsion Burnouts . | . . . . . . . . . . . . . . Robots Hopped . | . . . . . . . . . . . . . . Cave-ins Triggered . | . . . . . . . . . . . . . . Exploration Rate (%) 54 | 5 99 30 62 77 79 61 23 66 69 75 88 6 19 Regions Visited 13 Branch Regions 7 Pre-discovered Areas 8 | . 4 . 1 . 1 . . 1 . 1 . . . Known Exits Taken 5 | . . . . 1 1 . 1 . . . 1 1 . Unknown Exits Taken 7 | 1 1 1 1 . . . . 1 1 1 . . . Scrap Searched 6 | . . . . 2 . . . 1 1 . 2 . . Spaces Dug 31 | . . . . . 5 5 15 . 2 . . 4 . Terrain Destroyed 88 | . 11 4 . 4 42 5 16 . 2 . . 4 . Melee 28 | . . . . . 2 5 15 . 2 . . 4 . Projectile 4 | . . . . . 3 . 1 . . . . . . AOE 56 | . 11 4 . 4 37 . . . . . . . . Terrain Rammed . | . . . . . . . . . . . . . . Walls Destroyed . | . . . . . . . . . . . . . . Machines Disabled . | . . . . . . . . . . . . . . Actions | -11 -10 -10 -10 -9 -8 -8 -7 -7 -7 -7 -6 -6 -6 --------- Run | Yrd Mat Min Exi Min Mat Gar Fac Low Low Dat Pro Fac Gar Total 7216 | 141 932 112 244 341 1265 394 799 795 800 103 914 254 122 Wait 766 | 1 26 . . 34 63 13 33 183 146 . 238 15 14 Move 5590 | 116 762 101 239 278 988 314 656 556 547 103 650 186 94 Hop . | . . . . . . . . . . . . . . Pick Up 116 | 5 23 . 2 7 31 4 15 3 16 . 1 8 1 Fast Attach 47 | 6 3 . . . 12 2 6 1 7 . 5 5 . Attach 70 | 1 4 . . 3 7 2 10 9 21 . 2 10 1 Detach 22 | 1 . 2 . 1 1 . . 2 11 . . 4 . Swap 81 | . 9 4 1 4 25 6 13 6 9 . 1 3 . Drop 102 | 1 11 . 2 . 45 1 20 5 7 . 3 3 4 Fire 280 | 10 94 5 . 7 82 14 22 11 24 . 11 . . Melee 129 | . . . . 7 11 26 24 19 11 . 3 20 8 Ram . | . . . . . . . . . . . . . . Kick . | . . . . . . . . . . . . . . Crush 1 | . . . . . . . . . 1 . . . . Escape Stasis 12 | . . . . . . 12 . . . . . . . Rewire . | . . . . . . . . . . . . . . Trap . | . . . . . . . . . . . . . . Miscellaneous . | . . . . . . . . . . . . . . Route ------- -11/Scrapyard -10/Materials (discovered 6 exits: *Mat x3 / [*Min x2] / Sub) -10/Mines (discovered 3 exits: Mat x2 / *Exi) -10/Exiles -9/Mines -8/Materials (discovered 4 exits: *Fac x3 / Gar) -8/Garrison (discovered 3 exits: *Fac x3) -7/Factory (discovered 3 exits: *Fac / Sto / *Low) -7/Lower Caves -7/Lower Caves (discovered 3 exits: *Fac x2 / *Dat) -7/Data Miner -6/Proximity Caves -6/Factory (discovered 4 exits: Fac / Low x2 / Gar) -6/Garrison History --------- Turn | Location | Event 2 | -11/Scrapyard | Met Revision 17 11 | -11/Scrapyard | Discovered new exit (range 14) 228 | -11/Scrapyard | Entered Materials 289 | -10/Materials | Discovered new exit (range 16) 305 | -10/Materials | Build established: Mutant 841 | -10/Materials | Discovered new exit (range 16) 1779 | -10/Materials | Discovered new exit (range 12) 1820 | -10/Materials | Discovered new exit (range 14) 2053 | -10/Materials | Discovered new exit (range 10) 2119 | -10/Materials | Identified exit to Subcaves 2119 | -10/Materials | Learned location of 1 exit from Materials 2154 | -10/Materials | Learned location of Recycling (-7) 2188 | -10/Materials | Learned location of Storage (-7) 2189 | -10/Materials | Loaded intel: 4 trap records 2192 | -10/Materials | Loaded intel: 1 repair station location 2193 | -10/Materials | Learned Storage security intel 2291 | -10/Materials | Entered Mines 2292 | -10/Mines | Identified exit to Materials 2311 | -10/Mines | Deemed a non-threat by the Exiles lab entrance 2311 | -10/Mines | Discovered new exit (range 5) 2468 | -10/Mines | Assembled infested the area 2473 | -10/Mines | Assisted by a Guerilla fighting off Assembled 2551 | -10/Mines | Entered Exiles 2614 | -10/Exiles | Met 8R-AWN 2655 | -10/Exiles | Met EX-HEX 2729 | -10/Exiles | Met EX-BIN 2755 | -10/Exiles | Aligned with FarCom system 2758 | -10/Exiles | Given EX-Vault access code 2813 | -10/Exiles | Opened EX-Vault 2828 | -10/Exiles | Found Longsword +1 2833 | -10/Exiles | Found PSU Rigger 2882 | -10/Exiles | Warned to stay clear of 0b10 Research branches 2952 | -10/Exiles | Met EX-DEC 2993 | -10/Exiles | Learned location of Zion (-6) 3110 | -10/Exiles | Discovered new exit (range 10) 3130 | -10/Exiles | Stole two prototypes: PSU Rigger, Longsword +1 3130 | -10/Exiles | Entered Mines 3131 | -9/Mines | Identified exit to Materials 3139 | -9/Mines | Core integrity fell below 50% 3396 | -9/Mines | Excavation squad dispatched 3396 | -9/Mines | A large section of the Mines collapsed 3501 | -9/Mines | Found a hidden stash of uninstalled traps 3633 | -9/Mines | Learned location of 2 exits from Materials 3646 | -9/Mines | Excavation squad dispatched 3878 | -9/Mines | Entered Materials 3878 | -8/Materials | Evolved 4 slots: Propulsion x2, Utility x2 3879 | -8/Materials | Identified exit to Factory 4550 | -8/Materials | Build established: Scavenger-Mutant 5062 | -8/Materials | Learned Storage trap positions 5079 | -8/Materials | Build established: Mutant 5158 | -8/Materials | Learned 2 Lower Caves zone layouts 5171 | -8/Materials | Learned Storage trap positions 5213 | -8/Materials | Learned location of Lower Caves (-6) 5248 | -8/Materials | Learned Factory trap positions 6561 | -8/Materials | Garrison activated, responded to threat 6655 | -8/Materials | Identified exit to Garrison 6655 | -8/Materials | Entered Garrison 6673 | -8/Garrison | Lost 3 parts (2n1w) 6695 | -8/Garrison | Learned Factory security intel 6815 | -8/Garrison | Triggered checkpoint 6952 | -8/Garrison | Garrison Relay disabled 7151 | -8/Garrison | Triggered checkpoint 7290 | -8/Garrison | Garrison Relay disabled 7344 | -8/Garrison | Discovered exit to Factory (range 15) 7409 | -8/Garrison | Installed Relay Interface Framework 7432 | -8/Garrison | Entered Factory 7432 | -7/Factory | Evolved 2 slots: Propulsion x2 7433 | -7/Factory | Identified exit to Storage 7434 | -7/Factory | Loaded intel: 79 trap records 7434 | -7/Factory | FarCom data flow suspended 7736 | -7/Factory | Build established: Scavenger-Mutant 8213 | -7/Factory | Discovered new exit (range 15) 8254 | -7/Factory | Identified exit to Factory 8457 | -7/Factory | Discovered new exit (range 4) 8461 | -7/Factory | Identified exit to Lower Caves 8463 | -7/Factory | Entered Lower Caves 8694 | -7/Lower Caves | Attracted the attention of an 0b10 base 8846 | -7/Lower Caves | Learned location of Extension (-4) 8846 | -7/Lower Caves | Learned location of 1 exit from Factory 8988 | -7/Lower Caves | Spotted B-75 Beast 9055 | -7/Lower Caves | Discovered new exit (range 14) 9218 | -7/Lower Caves | Attacked by a delusional Derelict stockpiling Unaware 9369 | -7/Lower Caves | Learned 4 Factory zone layouts 9516 | -7/Lower Caves | Entered another Lower Caves area 9516 | -7/Lower Caves | Accompanied by 4 allies 9570 | -7/Lower Caves | Discovered exit to Factory (range 14) 9663 | -7/Lower Caves | Encountered a Warlord checkpoint 9811 | -7/Lower Caves | Found Imp. Powered Armor 9938 | -7/Lower Caves | Attracted the attention of an 0b10 checkpoint 10074 | -7/Lower Caves | Spotted P0-V5E(f) 10074 | -7/Lower Caves | Spotted EK-CUR(f) 10075 | -7/Lower Caves | Spotted KX-K8E(f) 10076 | -7/Lower Caves | Encountered a Master Thief 10076 | -7/Lower Caves | Encountered a Master Thief 10076 | -7/Lower Caves | Encountered a Master Thief 10076 | -7/Lower Caves | Spotted 4Q-70J(f) 10077 | -7/Lower Caves | Encountered a Master Thief 10077 | -7/Lower Caves | Spotted SQ-CD4(f) 10078 | -7/Lower Caves | Encountered a Master Thief 10079 | -7/Lower Caves | Prc. Energy Filter stolen by Master Thief 10080 | -7/Lower Caves | Imp. Transmission Jammer stolen by Master Thief 10081 | -7/Lower Caves | Dirty Bomb Trap stolen by Master Thief 10082 | -7/Lower Caves | Hvy. Particle Cannon stolen by Master Thief 10083 | -7/Lower Caves | Fire Trap stolen by Master Thief 10112 | -7/Lower Caves | Discovered new exit (range 10) 10556 | -7/Lower Caves | Attracted the attention of an 0b10 base 10610 | -7/Lower Caves | Core integrity fell below 50% 10656 | -7/Lower Caves | Lost 14 parts (2p6n2u4w) 10726 | -7/Lower Caves | Learned Extension garrison access intel 10726 | -7/Lower Caves | Learned Factory terminal intel 10726 | -7/Lower Caves | Learned 8 Factory zone layouts 10782 | -7/Lower Caves | 1C-UTU showed up to help 10784 | -7/Lower Caves | 1C-UTU revealed a hidden path 10871 | -7/Lower Caves | Entered Data Miner 10871 | -7/Data Miner | Discovered new exit (range 6) 10908 | -7/Data Miner | Met Data Miner 10965 | -7/Data Miner | Learned location of Section 7 (-2) 10965 | -7/Data Miner | Acquired the access code to Warlord's prototype stash 11006 | -7/Data Miner | Received God Mode back door access code from Data Miner 11067 | -7/Data Miner | Entered Proximity Caves 11633 | -6/Proximity Caves | Received a Behemoth hack from an annoying Tinkerer 11826 | -6/Proximity Caves | Escorted by Enhanced Grunt 11826 | -6/Proximity Caves | Attracted the attention of an 0b10 checkpoint 12002 | -6/Proximity Caves | Spotted B-75 Beast 12090 | -6/Proximity Caves | Learned 8 Factory zone layouts 12197 | -6/Proximity Caves | Entered Factory 12197 | -6/Factory | Evolved 2 slots: Power x1, Utility x1 12198 | -6/Factory | Identified exit to Factory 12199 | -6/Factory | Identified exit to Lower Caves 12200 | -6/Factory | Loaded intel: 26 terminal locations 12515 | -6/Factory | Identified exit to Garrison 12522 | -6/Factory | Core integrity fell below 50% 12543 | -6/Factory | Lost 17 parts (2p10n4u1w) 12556 | -6/Factory | Entered Garrison 12580 | -6/Garrison | Triggered checkpoint 12610 | -6/Garrison | Core integrity fell below 20% 12636 | -6/Garrison | Destroyed by P-60 Hacker with Shock Rifle Last Messages --------------- 12549_ Penetrated by Slug. 12550_ K-01 Serf collects debris. 12555_ ALERT: Security rotation in progress. 12555_ Slug penetrates Wall. LOCATION=GARRISON GOAL=ESCAPE 12556_ Dropped Imp. Heavy Armor Plating. 12558_ Dropped Hcp. Storage Unit. 12558_ Dropped Lightning Gun. 12559_ Dropped Hcp. Matter Pod. 12560_ Acquired Imp. Datajack. 12570_ ALERT: Dispatching investigation squad to Factory. 12577_ Connecting with Garrison Terminal... 12577_ ALERT: Suspicious activity at Terminal G002. Transmitting hostile system tracking data. Garrison Door activated. 12623_ G-50 Soldier destroyed. 12627_ G-50 Soldier Carbon-fiber Leg severed. 12629_ G-50 Soldier destroyed. 12633_ Critical hit (Burn: +37). 12635_ G-50 Soldier Hvy. Laser severed. Map ----- +----------------------------------------------------+ | ???????????????????????????????????# #? #??? | | ?????????????????????????########### ## ## | | ?????????????????????????# | | ?????????????????????????# | | ?????????????????????????# #??????# | | ?????????????????????????# #??????## ## ##### | | ?????????????????????????# #???????# #? #???? | | ?????????????????????????# +???????# #??+###???? | | ?????????????????????????# #???????# #?? #?????? | | ???????????????????##????# #???????# ##??#?????? | | ???????????????????# ???# #???????# T#????????? | | ??????????########## ### ######### ##????????? | | ?????? #?????????? | | ?????? #?????????? | | ??????????????###### ### ############?????????? | | ?????????????????????????# #????????????????????? | | ?????????????????????????# #????????????????????? | | ?????????????????????????# #????????????????????? | | ?????????????????????????# #????????????????????? | | ?????????????????????????# #????????????????????? | | ?????????????????????????# #????????????????????? | | ?????????????????????????# #????????????????????? | | ?????????????????????????# #????????????????????? | | ?????????????????????????#gg#????????????????????? | | ????????????????##########pg#????????????????????? | | ????????????????#[*[! [@=*#????????????????????? | | ????????????????#!!!! !* #????????????????????? | | ????????????????#!!!#########????????????????????? | | ????????????????# !!#????????????????????????????? | | ????????????????#####????????????????????????????? | | ?????????????????????????????????????????????????? | | ?????????????????????????????????????????????????? | | ?????????????????????????????????????????????????? | | ?????????????????????????????????????????????????? | | ?????????????????????????????????????????????????? | | ?????????????????????????????????????????????????? | | ?????????????????????????????????????????????????? | | ?????????????????????????????????????????????????? | | ?????????????????????????????????????????????????? | | ?????????????????????????????????????????????????? | | ?????????????????????????????????????????????????? | | ?????????????????????????????????????????????????? | | ?????????????????????????????????????????????????? | | ?????????????????????????????????????????????????? | | ?????????????????????????????????????????????????? | | ?????????????????????????????????????????????????? | | ?????????????????????????????????????????????????? | | ?????????????????????????????????????????????????? | | | | | +----------------------------------------------------+ Best States ------------- Heat Dissipation 61 Coolant Potential 65 Energy Generation 32 Energy Capacity 515 Matter Stores 300 Matter Capacity 300 Sight Range 20 Robot Scan Range 15 Terrain Scan Range 24 Terrain Scan Density 210 Armor Coverage 825 Power Shielding 66 Evasion (%) 55 Recoil Reduction 4 Offensive Hacking 10 Item Schematics ----------------- Combat Drone Bay | -7/Data Miner | Free Lgt. Regenerative Plating | -7/Data Miner | Free Biomechanical Wings | -7/Data Miner | Free Com. Ion Cannon | -7/Data Miner | Free Thermal Defense Suite | -7/Data Miner | Free Nuclear Pulse Array | -7/Data Miner | Free Imp. Recalibrator | -7/Data Miner | Free Smartbomb Launcher | -7/Data Miner | Free Imp. Medium Treads | -7/Data Miner | Free Arm. Medium Treads | -7/Data Miner | Free Robot Schematics ------------------ X-62 Marksman | -7/Data Miner | Free R-10 Processor | -7/Data Miner | Free M-22 Extractor | -7/Data Miner | Free B-60 Warrior | -7/Data Miner | Free G-50 Soldier | -7/Data Miner | Free Fabricated ------------ Nothing Alien Tech Used ----------------- None Achievements -------------- None Challenges ------------ None Game ------ Seed SensorHeatDevice Manual? 0 Play Time 01:49:07 Cumulative 143.0 hours Start 2024.12.29 @ 23:31:40 End 2024.12.30 @ 01:23:40 Sessions 1 Manual Loads 0 Difficulty Rogue Special Mode None Game No. 71 Rogue 71 Adventurer 0 Explorer 0 Win Type - Total 0 Types 0/0/0/0/0/0/0/0/0 Lore% 49 Gallery% 69 Achievement% 56 Wizard Run 0 Options --------- Layout 0 ASCII 0 Keyboard 0 Movement Mouse Keybinds 0 Fullscreen 1 Font 24/Smallcaps Map View 183x50 Zoom Use 0% Tactical HUD 1 Map Filters NONE Filters NONE Steam 0 RUN: ef33e060-561a-432f-b4a0-366c559ade1f